[Event "Titled Tuesday Blitz February 22 Early 2022"]
[White "Siva Mahadevan"]
[Black "Mohammad Fahad, Rahman"]
[WhiteFideId "25043153"]
[BlackFideId "10207791"]
[WhiteElo "2203"]
[BlackElo "2323"]
[Result "0-1"]
[Round "07"]
[TimeControl "180+1"]
[Date "2022.02.22"]
[WhiteClock "0:00:03"]
[BlackClock "0:00:07"]

1. e4 {[%clk 0:02:59]}  c6 {[%clk 0:02:58]} 2. d4 {[%clk 0:02:59]}  d5 {[%clk 0:02:59]} 3. e5 {[%clk 0:03:00]}  c5 {[%clk 0:02:58]} 4. Nf3 {[%clk 0:03:00]}  Nc6 {[%clk 0:02:53]} 5. c4 {[%clk 0:03:00]}  cxd4 {[%clk 0:02:51]} 6. Nxd4 {[%clk 0:03:00]}  e6 {[%clk 0:02:51]} 7. Nc3 {[%clk 0:03:00]}  Bb4 {[%clk 0:02:48]} 8. Qa4 {[%clk 0:02:44]}  Ne7 {[%clk 0:02:42]} 9. Bg5 {[%clk 0:02:24]}  Bd7 {[%clk 0:02:19]} 10. Nxc6 {[%clk 0:01:50]}  Bxc3+ {[%clk 0:02:18]} 11. bxc3 {[%clk 0:01:51]}  Bxc6 {[%clk 0:02:19]} 12. Qa3 {[%clk 0:01:45]}  h6 {[%clk 0:02:14]} 13. Bh4 {[%clk 0:01:43]}  g5 {[%clk 0:02:11]} 14. Bg3 {[%clk 0:01:43]}  Rc8 {[%clk 0:01:37]} 15. Rd1 {[%clk 0:01:34]}  Qb6 {[%clk 0:01:22]} 16. c5 {[%clk 0:01:12]}  Qc7 {[%clk 0:01:20]} 17. Bd3 {[%clk 0:01:13]}  a6 {[%clk 0:01:07]} 18. h4 {[%clk 0:01:09]}  g4 {[%clk 0:01:05]} 19. h5 {[%clk 0:01:10]}  Bd7 {[%clk 0:01:00]} 20. Rh4 {[%clk 0:01:05]}  Rg8 {[%clk 0:00:57]} 21. Qb4 {[%clk 0:00:51]}  Qxc5 {[%clk 0:00:56]} 22. Qf4 {[%clk 0:00:51]}  Qxc3+ {[%clk 0:00:40]} 23. Kf1 {[%clk 0:00:52]}  Rg5 {[%clk 0:00:20]} 24. Qf6 {[%clk 0:00:27]}  Ba4 {[%clk 0:00:18]} 25. Qxh6 {[%clk 0:00:11]}  Bxd1 {[%clk 0:00:17]} 26. Qxg5 {[%clk 0:00:11]}  Qxd3+ {[%clk 0:00:17]} 27. Kg1 {[%clk 0:00:12]}  Be2 {[%clk 0:00:05]} 28. h6 {[%clk 0:00:10]}  Qb1+ {[%clk 0:00:05]} 29. Kh2 {[%clk 0:00:10]}  Bd3 {[%clk 0:00:06]} 30. Rxg4 {[%clk 0:00:06]}  Rc1 {[%clk 0:00:06]} 31. Bh4 {[%clk 0:00:06]}  Rh1+ {[%clk 0:00:06]} 32. Kg3 {[%clk 0:00:05]}  Nf5+ {[%clk 0:00:06]} 33. Kf4 {[%clk 0:00:05]}  Qb4+ {[%clk 0:00:06]} 34. Kf3 {[%clk 0:00:03]}  Be2+ {[%clk 0:00:07]} 35. Kxe2 {[%clk 0:00:03]}  Re1+ {[%clk 0:00:07]} 36. Kf3 {[%clk 0:00:03]}  Qc3+ {[%clk 0:00:07]} 37. Kf4 {[%clk 0:00:02]}  Qd4+ {[%clk 0:00:07]} 38. Kf3 {[%clk 0:00:03]}  Qd3+ {[%clk 0:00:07]} 0-1


[Site "https://www.chess.com"]

[Event "Titled Tuesday Blitz February 22 Early 2022"]
[White "Slugin, Sergey"]
[Black "Tsvetkov, Andrey"]
[WhiteFideId "4122569"]
[BlackFideId "34139360"]
[WhiteElo "2358"]
[BlackElo "2280"]
[Result "1-0"]
[Round "07"]
[TimeControl "180+1"]
[Date "2022.02.22"]
[WhiteClock "0:00:39"]
[BlackClock "0:00:41"]

1. e4 {[%clk 0:02:56]}  c5 {[%clk 0:03:00]} 2. Nf3 {[%clk 0:02:53]}  d6 {[%clk 0:03:00]} 3. d4 {[%clk 0:02:54]}  cxd4 {[%clk 0:03:01]} 4. Nxd4 {[%clk 0:02:55]}  Nf6 {[%clk 0:03:02]} 5. Nc3 {[%clk 0:02:55]}  a6 {[%clk 0:03:02]} 6. Bg5 {[%clk 0:02:53]}  Nbd7 {[%clk 0:03:02]} 7. f4 {[%clk 0:02:52]}  Qc7 {[%clk 0:03:00]} 8. Qe2 {[%clk 0:02:50]}  e5 {[%clk 0:02:59]} 9. Nf5 {[%clk 0:02:43]}  h6 {[%clk 0:02:56]} 10. fxe5 {[%clk 0:02:28]}  dxe5 {[%clk 0:02:08]} 11. Bxf6 {[%clk 0:02:27]}  Nxf6 {[%clk 0:02:08]} 12. O-O-O {[%clk 0:02:27]}  Bb4 {[%clk 0:01:52]} 13. Nd5 {[%clk 0:02:09]}  Nxd5 {[%clk 0:01:46]} 14. Rxd5 {[%clk 0:02:10]}  O-O {[%clk 0:01:09]} 15. a3 {[%clk 0:01:42]}  Bc5 {[%clk 0:01:00]} 16. Qc4 {[%clk 0:01:35]}  b6 {[%clk 0:00:55]} 17. b4 {[%clk 0:00:58]}  Bxf5 {[%clk 0:00:54]} 18. exf5 {[%clk 0:00:51]}  Be3+ {[%clk 0:00:52]} 19. Kb1 {[%clk 0:00:51]}  Qe7 {[%clk 0:00:52]} 20. Qe4 {[%clk 0:00:42]}  Bg5 {[%clk 0:00:44]} 21. Bd3 {[%clk 0:00:40]}  a5 {[%clk 0:00:41]} 22. f6 {[%clk 0:00:39]} 1-0


[Site "https://www.chess.com"]

[Event "Titled Tuesday Blitz February 22 Early 2022"]
[White "Srihari L R"]
[Black "Dwilewicz, Katarzyna"]
[WhiteFideId "46617116"]
[BlackFideId "1148486"]
[WhiteElo "2121"]
[BlackElo "1907"]
[Result "1-0"]
[Round "07"]
[TimeControl "180+1"]
[Date "2022.02.22"]
[WhiteClock "0:00:56"]
[BlackClock "0:00:24"]

1. Nf3 {[%clk 0:02:56]}  Nf6 {[%clk 0:02:59]} 2. g3 {[%clk 0:02:56]}  b6 {[%clk 0:02:55]} 3. Bg2 {[%clk 0:02:57]}  Bb7 {[%clk 0:02:56]} 4. O-O {[%clk 0:02:57]}  e6 {[%clk 0:02:56]} 5. Ne1 {[%clk 0:02:58]}  Bxg2 {[%clk 0:02:54]} 6. Nxg2 {[%clk 0:02:59]}  d5 {[%clk 0:02:55]} 7. d3 {[%clk 0:02:55]}  c5 {[%clk 0:02:55]} 8. Nd2 {[%clk 0:02:50]}  Nc6 {[%clk 0:02:54]} 9. e4 {[%clk 0:02:50]}  Be7 {[%clk 0:02:53]} 10. c3 {[%clk 0:02:49]}  O-O {[%clk 0:02:52]} 11. Qe2 {[%clk 0:02:49]}  Qc7 {[%clk 0:02:44]} 12. f4 {[%clk 0:02:43]}  dxe4 {[%clk 0:02:42]} 13. dxe4 {[%clk 0:02:38]}  Rfd8 {[%clk 0:02:36]} 14. a4 {[%clk 0:02:35]}  Rd7 {[%clk 0:02:11]} 15. Nc4 {[%clk 0:02:21]}  Rad8 {[%clk 0:01:59]} 16. Qf3 {[%clk 0:02:08]}  Rd3 {[%clk 0:01:57]} 17. Be3 {[%clk 0:02:03]}  Nd4 {[%clk 0:01:23]} 18. cxd4 {[%clk 0:01:39]}  cxd4 {[%clk 0:01:23]} 19. Rac1 {[%clk 0:01:37]}  Qb7 {[%clk 0:00:59]} 20. Ne5 {[%clk 0:01:17]}  Rb3 {[%clk 0:00:42]} 21. Qd1 {[%clk 0:01:15]}  Rxb2 {[%clk 0:00:38]} 22. Bf2 {[%clk 0:01:03]}  Nxe4 {[%clk 0:00:32]} 23. Nc6 {[%clk 0:00:58]}  Bc5 {[%clk 0:00:24]} 24. Nxd8 {[%clk 0:00:56]} 1-0


[Site "https://www.chess.com"]

[Event "Titled Tuesday Blitz February 22 Early 2022"]
[White "Stefanov, Plamen"]
[Black "Karavaeva, Olga"]
[WhiteFideId "2900980"]
[BlackFideId "4124111"]
[WhiteElo "2137"]
[BlackElo "2105"]
[Result "1-0"]
[Round "07"]
[TimeControl "180+1"]
[Date "2022.02.22"]
[WhiteClock "0:00:08"]
[BlackClock "0:00:10"]

1. e4 {[%clk 0:03:00]}  c5 {[%clk 0:02:59]} 2. Nf3 {[%clk 0:03:00]}  e6 {[%clk 0:02:59]} 3. c3 {[%clk 0:02:59]}  Nf6 {[%clk 0:02:59]} 4. e5 {[%clk 0:03:00]}  Nd5 {[%clk 0:02:58]} 5. Bc4 {[%clk 0:03:00]}  d6 {[%clk 0:02:57]} 6. Bxd5 {[%clk 0:02:59]}  exd5 {[%clk 0:02:58]} 7. O-O {[%clk 0:02:59]}  dxe5 {[%clk 0:02:54]} 8. Nxe5 {[%clk 0:02:58]}  Be7 {[%clk 0:02:54]} 9. d4 {[%clk 0:02:58]}  O-O {[%clk 0:02:53]} 10. Nd2 {[%clk 0:02:57]}  Nc6 {[%clk 0:02:52]} 11. Ndf3 {[%clk 0:02:57]}  h6 {[%clk 0:02:49]} 12. Re1 {[%clk 0:02:55]}  Bf5 {[%clk 0:02:47]} 13. h3 {[%clk 0:02:54]}  Re8 {[%clk 0:02:46]} 14. Bf4 {[%clk 0:02:50]}  Be4 {[%clk 0:02:45]} 15. Qd2 {[%clk 0:02:38]}  Bd6 {[%clk 0:02:35]} 16. Bxh6 {[%clk 0:02:28]}  cxd4 {[%clk 0:02:26]} 17. Nxc6 {[%clk 0:01:33]}  bxc6 {[%clk 0:02:25]} 18. Bg5 {[%clk 0:01:28]}  f6 {[%clk 0:02:18]} 19. Bf4 {[%clk 0:01:14]}  dxc3 {[%clk 0:02:12]} 20. bxc3 {[%clk 0:01:12]}  Bxf3 {[%clk 0:01:58]} 21. Rxe8+ {[%clk 0:01:12]}  Qxe8 {[%clk 0:01:58]} 22. Bxd6 {[%clk 0:01:12]}  Qg6 {[%clk 0:01:58]} 23. Bg3 {[%clk 0:01:10]}  Be4 {[%clk 0:01:54]} 24. Qd4 {[%clk 0:01:07]}  Re8 {[%clk 0:01:41]} 25. Qxa7 {[%clk 0:01:01]}  Bd3 {[%clk 0:01:32]} 26. Qd7 {[%clk 0:00:55]}  f5 {[%clk 0:01:22]} 27. Kh2 {[%clk 0:00:48]}  Re4 {[%clk 0:01:08]} 28. Qd6 {[%clk 0:00:33]}  Qe8 {[%clk 0:01:01]} 29. a4 {[%clk 0:00:30]}  Re6 {[%clk 0:00:57]} 30. Qf4 {[%clk 0:00:29]}  Re4 {[%clk 0:00:51]} 31. Qg5 {[%clk 0:00:29]}  Qf7 {[%clk 0:00:41]} 32. Bf4 {[%clk 0:00:21]}  Re2 {[%clk 0:00:38]} 33. Be3 {[%clk 0:00:19]}  f4 {[%clk 0:00:36]} 34. Bd4 {[%clk 0:00:20]}  Be4 {[%clk 0:00:29]} 35. a5 {[%clk 0:00:17]}  Bd3 {[%clk 0:00:22]} 36. a6 {[%clk 0:00:17]}  c5 {[%clk 0:00:20]} 37. Bxc5 {[%clk 0:00:15]}  f3 {[%clk 0:00:21]} 38. g3 {[%clk 0:00:14]}  Re8 {[%clk 0:00:17]} 39. a7 {[%clk 0:00:13]}  Ra8 {[%clk 0:00:16]} 40. Bd4 {[%clk 0:00:12]}  Be4 {[%clk 0:00:15]} 41. Ra6 {[%clk 0:00:09]}  Bf5 {[%clk 0:00:11]} 42. Rd6 {[%clk 0:00:08]}  Be6 {[%clk 0:00:10]} 43. Rd8+ {[%clk 0:00:08]} 1-0


[Site "https://www.chess.com"]

[Event "Titled Tuesday Blitz February 22 Early 2022"]
[White "Steil-Antoni, Fiona"]
[Black "Kirillov, Dmitry"]
[WhiteFideId "4001249"]
[BlackFideId "34180572"]
[WhiteElo "2059"]
[BlackElo "2076"]
[Result "0-1"]
[Round "07"]
[TimeControl "180+1"]
[Date "2022.02.22"]
[WhiteClock "0:00:02"]
[BlackClock "0:00:14"]

1. e4 {[%clk 0:03:00]}  c5 {[%clk 0:03:00]} 2. Nc3 {[%clk 0:03:01]}  Nc6 {[%clk 0:02:59]} 3. f4 {[%clk 0:03:01]}  e6 {[%clk 0:02:52]} 4. Nf3 {[%clk 0:03:01]}  d5 {[%clk 0:02:53]} 5. Bb5 {[%clk 0:02:50]}  dxe4 {[%clk 0:02:50]} 6. Bxc6+ {[%clk 0:02:49]}  bxc6 {[%clk 0:02:51]} 7. Nxe4 {[%clk 0:02:49]}  Nf6 {[%clk 0:02:47]} 8. d3 {[%clk 0:02:49]}  Nxe4 {[%clk 0:02:44]} 9. dxe4 {[%clk 0:02:50]}  Qxd1+ {[%clk 0:02:44]} 10. Kxd1 {[%clk 0:02:51]}  f6 {[%clk 0:02:32]} 11. Be3 {[%clk 0:02:47]}  Kd7 {[%clk 0:02:32]} 12. c3 {[%clk 0:02:41]}  Kc7 {[%clk 0:02:32]} 13. Kc2 {[%clk 0:02:41]}  Ba6 {[%clk 0:02:29]} 14. Rad1 {[%clk 0:02:39]}  Be7 {[%clk 0:02:29]} 15. Nd2 {[%clk 0:02:35]}  c4 {[%clk 0:02:21]} 16. Nf3 {[%clk 0:02:29]}  c5 {[%clk 0:02:21]} 17. Rd2 {[%clk 0:02:21]}  Bb7 {[%clk 0:02:20]} 18. e5 {[%clk 0:02:14]}  Be4+ {[%clk 0:02:20]} 19. Kc1 {[%clk 0:02:10]}  Rad8 {[%clk 0:02:10]} 20. Rhd1 {[%clk 0:02:10]}  Rd3 {[%clk 0:02:07]} 21. Rxd3 {[%clk 0:01:59]}  cxd3 {[%clk 0:02:07]} 22. c4 {[%clk 0:01:52]}  Rd8 {[%clk 0:02:06]} 23. Kd2 {[%clk 0:01:29]}  h6 {[%clk 0:02:05]} 24. Kc3 {[%clk 0:01:23]}  f5 {[%clk 0:02:02]} 25. Ne1 {[%clk 0:01:16]}  Kc6 {[%clk 0:01:58]} 26. g3 {[%clk 0:01:11]}  g5 {[%clk 0:01:36]} 27. Nxd3 {[%clk 0:01:08]}  g4 {[%clk 0:01:30]} 28. Nf2 {[%clk 0:01:03]}  Rxd1 {[%clk 0:01:25]} 29. Nxd1 {[%clk 0:01:04]}  Bd8 {[%clk 0:01:18]} 30. a3 {[%clk 0:00:58]}  a5 {[%clk 0:01:16]} 31. Nf2 {[%clk 0:00:57]}  Bf3 {[%clk 0:01:09]} 32. Kb3 {[%clk 0:00:50]}  Be2 {[%clk 0:01:04]} 33. Kc3 {[%clk 0:00:47]}  a4 {[%clk 0:01:04]} 34. Nd3 {[%clk 0:00:41]}  Ba5+ {[%clk 0:00:58]} 35. Kc2 {[%clk 0:00:33]}  Bb6 {[%clk 0:00:49]} 36. Bd2 {[%clk 0:00:20]}  h5 {[%clk 0:00:41]} 37. Bc3 {[%clk 0:00:20]}  Bd8 {[%clk 0:00:34]} 38. Kd2 {[%clk 0:00:20]}  Bf1 {[%clk 0:00:32]} 39. Ke3 {[%clk 0:00:17]}  h4 {[%clk 0:00:30]} 40. Kd2 {[%clk 0:00:10]}  hxg3 {[%clk 0:00:27]} 41. hxg3 {[%clk 0:00:11]}  Be7 {[%clk 0:00:10]} 42. Ke3 {[%clk 0:00:11]}  Bd8 {[%clk 0:00:10]} 43. Be1 {[%clk 0:00:12]}  Bb6 {[%clk 0:00:09]} 44. Bf2 {[%clk 0:00:11]}  Ba5 {[%clk 0:00:09]} 45. Bg1 {[%clk 0:00:05]}  Bxd3 {[%clk 0:00:08]} 46. Kxd3 {[%clk 0:00:05]}  Be1 {[%clk 0:00:09]} 47. Bh2 {[%clk 0:00:05]}  Bf2 {[%clk 0:00:08]} 48. Kc2 {[%clk 0:00:05]}  Bd4 {[%clk 0:00:09]} 49. b3 {[%clk 0:00:05]}  axb3+ {[%clk 0:00:09]} 50. Kxb3 {[%clk 0:00:06]}  Kb6 {[%clk 0:00:10]} 51. Ka4 {[%clk 0:00:05]}  Ka6 {[%clk 0:00:10]} 52. Kb3 {[%clk 0:00:03]}  Ka5 {[%clk 0:00:11]} 53. Ka2 {[%clk 0:00:03]}  Ka4 {[%clk 0:00:10]} 54. Kb1 {[%clk 0:00:03]}  Kxa3 {[%clk 0:00:11]} 55. Kc2 {[%clk 0:00:03]}  Kb4 {[%clk 0:00:12]} 56. Kd3 {[%clk 0:00:04]}  Kb3 {[%clk 0:00:13]} 57. Ke2 {[%clk 0:00:02]}  Kxc4 {[%clk 0:00:14]} 58. Kd2 {[%clk 0:00:02]}  Kb3 {[%clk 0:00:14]} 59. Kd3 {[%clk 0:00:03]}  Bf2 {[%clk 0:00:13]} 60. Ke2 {[%clk 0:00:02]}  Bd4 {[%clk 0:00:14]} 61. Kd3 {[%clk 0:00:03]}  Kb4 {[%clk 0:00:14]} 62. Kd2 {[%clk 0:00:02]}  c4 {[%clk 0:00:15]} 63. Kc2 {[%clk 0:00:03]}  Bc5 {[%clk 0:00:14]} 64. Kd2 {[%clk 0:00:04]}  Kb3 {[%clk 0:00:14]} 65. Ke2 {[%clk 0:00:02]}  c3 {[%clk 0:00:14]} 0-1


[Site "https://www.chess.com"]

[Event "Titled Tuesday Blitz February 22 Early 2022"]
[White "Sviridova, Vlada"]
[Black "Novikov, Evgenij"]
[WhiteFideId "24109606"]
[BlackFideId "4125380"]
[WhiteElo "2101"]
[BlackElo "2242"]
[Result "0-1"]
[Round "07"]
[TimeControl "180+1"]
[Date "2022.02.22"]
[WhiteClock "0:00:03"]
[BlackClock "0:00:21"]

1. d4 {[%clk 0:03:00]}  Nf6 {[%clk 0:02:50]} 2. c4 {[%clk 0:03:00]}  g6 {[%clk 0:02:50]} 3. Nc3 {[%clk 0:03:00]}  Bg7 {[%clk 0:02:50]} 4. e4 {[%clk 0:03:00]}  O-O {[%clk 0:02:51]} 5. Nf3 {[%clk 0:03:01]}  d6 {[%clk 0:02:51]} 6. Be2 {[%clk 0:03:01]}  e5 {[%clk 0:02:52]} 7. O-O {[%clk 0:03:01]}  Nc6 {[%clk 0:02:47]} 8. d5 {[%clk 0:03:01]}  Ne7 {[%clk 0:02:47]} 9. Ne1 {[%clk 0:03:02]}  a5 {[%clk 0:02:46]} 10. Be3 {[%clk 0:03:02]}  Nd7 {[%clk 0:02:47]} 11. f3 {[%clk 0:03:01]}  f5 {[%clk 0:02:38]} 12. Nd3 {[%clk 0:03:01]}  b6 {[%clk 0:02:31]} 13. a3 {[%clk 0:03:01]}  Nc5 {[%clk 0:02:22]} 14. b4 {[%clk 0:02:43]}  axb4 {[%clk 0:02:19]} 15. axb4 {[%clk 0:02:43]}  Rxa1 {[%clk 0:02:20]} 16. Qxa1 {[%clk 0:02:43]}  Nb3 {[%clk 0:02:14]} 17. Qa7 {[%clk 0:02:15]}  Bd7 {[%clk 0:02:01]} 18. c5 {[%clk 0:02:05]}  bxc5 {[%clk 0:01:58]} 19. bxc5 {[%clk 0:02:05]}  Qb8 {[%clk 0:01:34]} 20. c6 {[%clk 0:02:02]}  Qxa7 {[%clk 0:01:30]} 21. Bxa7 {[%clk 0:02:02]}  Bc8 {[%clk 0:01:07]} 22. Nb5 {[%clk 0:01:53]}  Nd2 {[%clk 0:00:40]} 23. Rd1 {[%clk 0:01:49]}  fxe4 {[%clk 0:00:40]} 24. fxe4 {[%clk 0:01:30]}  Nxe4 {[%clk 0:00:40]} 25. Nxc7 {[%clk 0:01:21]}  Nc3 {[%clk 0:00:40]} 26. Re1 {[%clk 0:01:21]}  Ncxd5 {[%clk 0:00:38]} 27. Nb5 {[%clk 0:00:54]}  Nxc6 {[%clk 0:00:35]} 28. Bf3 {[%clk 0:00:29]}  Ndb4 {[%clk 0:00:27]} 29. Nxb4 {[%clk 0:00:20]}  Nxb4 {[%clk 0:00:28]} 30. Nxd6 {[%clk 0:00:20]}  Ba6 {[%clk 0:00:25]} 31. Bc5 {[%clk 0:00:19]}  Nd3 {[%clk 0:00:24]} 32. Bd5+ {[%clk 0:00:18]}  Kh8 {[%clk 0:00:24]} 33. Ra1 {[%clk 0:00:08]}  Nxc5 {[%clk 0:00:24]} 34. Ra5 {[%clk 0:00:05]}  e4 {[%clk 0:00:22]} 35. h4 {[%clk 0:00:03]}  Bd4+ {[%clk 0:00:21]} 0-1


[Site "https://www.chess.com"]

[Event "Titled Tuesday Blitz February 22 Early 2022"]
[White "Szpar, Milosz"]
[Black "Makhnev, Denis"]
[WhiteFideId "1184989"]
[BlackFideId "13707647"]
[WhiteElo "2447"]
[BlackElo "2491"]
[Result "0-1"]
[Round "07"]
[TimeControl "180+1"]
[Date "2022.02.22"]
[WhiteClock "0:00:06"]
[BlackClock "0:00:07"]

1. e4 {[%clk 0:03:00]}  c6 {[%clk 0:02:58]} 2. d4 {[%clk 0:03:00]}  d5 {[%clk 0:02:59]} 3. Nc3 {[%clk 0:03:00]}  dxe4 {[%clk 0:02:59]} 4. Nxe4 {[%clk 0:03:01]}  Nf6 {[%clk 0:03:00]} 5. Qd3 {[%clk 0:03:01]}  Nxe4 {[%clk 0:02:57]} 6. Qxe4 {[%clk 0:03:01]}  Nd7 {[%clk 0:02:58]} 7. Nf3 {[%clk 0:03:02]}  Nf6 {[%clk 0:02:58]} 8. Qf4 {[%clk 0:03:02]}  Qd6 {[%clk 0:02:42]} 9. Qxd6 {[%clk 0:02:42]}  exd6 {[%clk 0:02:42]} 10. g3 {[%clk 0:02:43]}  Be6 {[%clk 0:02:41]} 11. Bg2 {[%clk 0:02:42]}  h6 {[%clk 0:02:42]} 12. O-O {[%clk 0:02:42]}  Be7 {[%clk 0:02:42]} 13. b3 {[%clk 0:02:42]}  O-O {[%clk 0:02:36]} 14. Re1 {[%clk 0:02:42]}  Rfe8 {[%clk 0:02:36]} 15. Bb2 {[%clk 0:02:26]}  a5 {[%clk 0:02:34]} 16. a4 {[%clk 0:02:21]}  Nd5 {[%clk 0:02:30]} 17. Re2 {[%clk 0:02:08]}  Nb4 {[%clk 0:02:00]} 18. Rae1 {[%clk 0:02:06]}  Kf8 {[%clk 0:01:59]} 19. Rd2 {[%clk 0:01:48]}  Bf5 {[%clk 0:01:57]} 20. Ree2 {[%clk 0:01:30]}  g5 {[%clk 0:01:36]} 21. Ne1 {[%clk 0:01:28]}  g4 {[%clk 0:01:31]} 22. f4 {[%clk 0:01:18]}  Bf6 {[%clk 0:01:19]} 23. c3 {[%clk 0:01:14]}  Nd5 {[%clk 0:01:17]} 24. Nc2 {[%clk 0:00:52]}  Rxe2 {[%clk 0:00:59]} 25. Rxe2 {[%clk 0:00:52]}  Re8 {[%clk 0:01:00]} 26. Rxe8+ {[%clk 0:00:42]}  Kxe8 {[%clk 0:01:01]} 27. Na3 {[%clk 0:00:23]}  Kd7 {[%clk 0:01:01]} 28. Bxd5 {[%clk 0:00:18]}  cxd5 {[%clk 0:01:00]} 29. Kf2 {[%clk 0:00:18]}  h5 {[%clk 0:00:55]} 30. Ke3 {[%clk 0:00:18]}  h4 {[%clk 0:00:56]} 31. Bc1 {[%clk 0:00:17]}  h3 {[%clk 0:00:44]} 32. Bd2 {[%clk 0:00:17]}  Be4 {[%clk 0:00:43]} 33. c4 {[%clk 0:00:12]}  Bd8 {[%clk 0:00:43]} 34. Nb5 {[%clk 0:00:10]}  Bc2 {[%clk 0:00:28]} 35. cxd5 {[%clk 0:00:10]}  Bxb3 {[%clk 0:00:28]} 36. Nc3 {[%clk 0:00:10]}  f5 {[%clk 0:00:28]} 37. Kd3 {[%clk 0:00:10]}  b6 {[%clk 0:00:23]} 38. Bc1 {[%clk 0:00:10]}  Be7 {[%clk 0:00:16]} 39. Ba3 {[%clk 0:00:10]}  Kc8 {[%clk 0:00:17]} 40. Kd2 {[%clk 0:00:09]}  Kb7 {[%clk 0:00:16]} 41. Nb5 {[%clk 0:00:03]}  Bxd5 {[%clk 0:00:15]} 42. Bxd6 {[%clk 0:00:02]}  Bd8 {[%clk 0:00:14]} 43. Kc3 {[%clk 0:00:02]}  Kc6 {[%clk 0:00:12]} 44. Be5 {[%clk 0:00:02]}  Bf3 {[%clk 0:00:12]} 45. Na7+ {[%clk 0:00:02]}  Kd5 {[%clk 0:00:12]} 46. Nb5 {[%clk 0:00:03]}  Bd1 {[%clk 0:00:12]} 47. Kd2 {[%clk 0:00:02]}  Bb3 {[%clk 0:00:12]} 48. Nc3+ {[%clk 0:00:02]}  Kc4 {[%clk 0:00:12]} 49. d5 {[%clk 0:00:03]}  Kc5 {[%clk 0:00:11]} 50. d6 {[%clk 0:00:03]}  Kc6 {[%clk 0:00:11]} 51. Kd3 {[%clk 0:00:03]}  Be6 {[%clk 0:00:07]} 52. Kd4 {[%clk 0:00:03]}  Bf7 {[%clk 0:00:06]} 53. Nb5 {[%clk 0:00:02]}  Be8 {[%clk 0:00:04]} 54. Kc3 {[%clk 0:00:02]}  Kc5 {[%clk 0:00:03]} 55. Nd4 {[%clk 0:00:02]}  Bd7 {[%clk 0:00:03]} 56. Nb3+ {[%clk 0:00:02]}  Kd5 {[%clk 0:00:03]} 57. Kd3 {[%clk 0:00:02]}  Bxa4 {[%clk 0:00:03]} 58. Nd4 {[%clk 0:00:02]}  Bd7 {[%clk 0:00:03]} 59. Ne2 {[%clk 0:00:03]}  b5 {[%clk 0:00:04]} 60. Nc3+ {[%clk 0:00:04]}  Kc6 {[%clk 0:00:05]} 61. Kd4 {[%clk 0:00:04]}  b4 {[%clk 0:00:06]} 62. Nd5 {[%clk 0:00:04]}  Bb6+ {[%clk 0:00:07]} 63. Nxb6 {[%clk 0:00:04]}  Kxb6 {[%clk 0:00:08]} 64. Kc4 {[%clk 0:00:05]}  Be6+ {[%clk 0:00:08]} 65. Kd4 {[%clk 0:00:05]}  a4 {[%clk 0:00:09]} 66. Kd3 {[%clk 0:00:06]}  a3 {[%clk 0:00:09]} 67. Kc2 {[%clk 0:00:06]}  b3+ {[%clk 0:00:09]} 68. Kb1 {[%clk 0:00:07]}  b2 {[%clk 0:00:09]} 69. Bf6 {[%clk 0:00:06]}  Bd5 {[%clk 0:00:07]} 70. Be7 {[%clk 0:00:06]}  Be4+ {[%clk 0:00:07]} 0-1


[Site "https://www.chess.com"]